bitfinex/quotes_SOLUSD_20220212
["timestamp","ask_amount","ask_price","bid_price","bid_amount"]
[1644708388224,1.46372028,95.879,95.823,5.216]
[1644708388425,1.46372028,95.879,95.822,44.70036651]
[1644708388426,1.46372028,95.873,95.822,42.07646355]
[1644708388625,1.46372028,95.867,95.822,42.07646355]
[1644708388824,1.46372028,95.87,95.822,42.07646355]
[1644708389024,1.46372028,95.872,95.823,5.216]
[1644708389227,1.46372028,95.873,95.823,5.216]
[1644708389627,1.46372028,95.875,95.823,5.216]
[1644708389825,1.46372028,95.875,95.83,15.6434]
[1644708390229,5.75987887,95.896,95.83,15.6434]
[1644708390230,1.46372028,95.876,95.83,15.6434]
[1644708390627,1.46372028,95.875,95.83,15.6434]
[1644708390826,1.46372028,95.873,95.83,15.6434]
[1644708391030,1.46372028,95.875,95.83,15.6434]
[1644708391447,5.75838553,95.898,95.83,15.6434]
[1644708391448,1.46372028,95.876,95.83,15.6434]
[1644708391650,1.46372028,95.878,95.83,15.6434]
[1644708392949,1.46372028,95.88,95.83,15.6434]
[1644708393751,1.46372028,95.879,95.84,15.6447]
[1644708393950,1.46372028,95.88,95.84,15.6447]
[1644708394753,1.46372028,95.881,95.841,48.03145161]
[1644708394949,1.46372028,95.881,95.85,15.6447]
[1644708396353,1.46372028,95.882,95.85,15.6447]
[1644708396553,1.46372028,95.89,95.85,15.6447]
[1644708397158,1.46372028,95.892,95.85,15.6447]
[1644708398656,1.46372028,95.893,95.85,15.6447]
[1644708398859,3.03219997,95.89,95.85,15.6447]
[1644708399761,1.46372028,95.888,95.85,15.6447]
[1644708399961,1.46372028,95.889,95.85,15.6447]
[1644708400960,40.25310302,95.897,95.841,48.03145161]
[1644708400961,1.46372028,95.886,95.841,48.03145161]
[1644708401562,1.46372028,95.885,95.841,48.03145161]
[1644708401761,1.46372028,95.886,95.841,48.03145161]
[1644708402860,1.46372028,95.885,95.841,48.03145161]
[1644708403762,1.46372028,95.886,95.841,48.03145161]
[1644708404362,1.46372028,95.884,95.841,48.03145161]
[1644708405965,1.46372028,95.883,95.841,48.03145161]
[1644708406667,1.46372028,95.884,95.841,48.03145161]
[1644708406866,1.46372028,95.883,95.841,48.03145161]
[1644708407166,1.46372028,95.882,95.841,48.03145161]
[1644708407967,1.46372028,95.881,95.841,48.03145161]
[1644708408767,1.46372028,95.88,95.841,48.03145161]
[1644708408968,1.46372028,95.879,95.841,48.03145161]
[1644708409368,1.46372028,95.88,95.841,48.03145161]
[1644708410771,1.46372028,95.877,95.841,48.03145161]
[1644708413072,1.46372028,95.875,95.841,48.03145161]
[1644708413574,1.46372028,95.873,95.841,48.03145161]
[1644708414873,1.46372028,95.865,95.82,15.6494]
[1644708415074,0.25,95.872,95.811,2.62390296]
[1644708415075,1.46372028,95.85,95.811,2.62390296]
[1644708415274,1.46372028,95.843,95.786,22.6463]
[1644708415476,1.46372028,95.835,95.787,0.024]
[1644708415676,1.46372028,95.831,95.786,22.6223]
[1644708415875,47.22577626,95.836,95.787,45.9935908]
[1644708416074,47.22577626,95.836,95.787,45.9695908]
[1644708416875,47.22577626,95.836,95.8,15.6522]
[1644708417474,1.46372028,95.842,95.8,15.6522]
[1644708417676,1.46372028,95.843,95.8,15.6522]
[1644708418079,1.46372028,95.845,95.8,15.6522]
[1644708418977,1.46372028,95.846,95.8,15.6522]
[1644708419177,1.46372028,95.846,95.801,0.024]
[1644708419377,1.46372028,95.846,95.8,15.6522]
[1644708420179,1.46372028,95.848,95.8,15.6522]
[1644708420379,46.63321897,95.848,95.801,0.024]
[1644708420582,46.63321897,95.848,95.8,15.6522]
[1644708422184,1.46372028,95.849,95.8,15.6522]
[1644708422381,1.46372028,95.85,95.801,0.024]
[1644708422581,5.216,95.848,95.8,15.6522]
[1644708422779,5.216,95.849,95.8,15.6522]
[1644708422980,1.46372028,95.85,95.8,15.6522]
[1644708423183,1.46372028,95.852,95.8,15.6522]
[1644708423381,1.46372028,95.852,95.801,0.024]
[1644708423685,1.46372028,95.852,95.788,0.25]
[1644708423686,1.46372028,95.852,95.811,43.77424263]
[1644708424083,1.46372028,95.853,95.811,43.77424263]
[1644708425209,1.46372028,95.859,95.82,15.6499]
[1644708425404,1.46372028,95.865,95.82,15.6499]
[1644708425805,1.46372028,95.867,95.82,15.6499]
[1644708426002,1.46372028,95.866,95.82,15.6499]
[1644708426203,1.46372028,95.863,95.82,15.6499]
[1644708426603,1.46372028,95.862,95.82,15.6499]
[1644708426802,1.46372028,95.86,95.82,15.6499]
[1644708427007,1.46372028,95.861,95.82,15.6499]
[1644708427303,6.67972028,95.86,95.82,15.6499]
[1644708427502,1.46372028,95.86,95.82,15.6499]
[1644708427703,1.46372028,95.858,95.82,15.6499]
[1644708427905,1.46372028,95.86,95.82,15.6499]
[1644708429005,1.46372028,95.861,95.82,15.6499]
[1644708429205,5.466,95.86,95.82,15.6499]
[1644708429405,1.46372028,95.855,95.82,15.6499]
[1644708429605,1.46372028,95.852,95.812,23.212]
[1644708430207,1.46372028,95.853,95.812,23.212]
[1644708430509,1.46372028,95.857,95.812,23.212]
[1644708430709,1.46372028,95.859,95.82,15.6503]
[1644708430912,1.46372028,95.857,95.82,15.6503]
[1644708431108,1.46372028,95.855,95.82,15.6503]
[1644708431310,5.216,95.854,95.82,15.6503]
[1644708432111,1.46372028,95.853,95.82,15.6503]
[1644708432311,0.25,95.852,95.82,15.6503]
[1644708432611,5.216,95.852,95.82,15.6503]
[1644708432810,1.46372028,95.857,95.82,15.6503]
[1644708433011,1.46372028,95.856,95.82,15.6503]
[1644708433711,1.46372028,95.855,95.82,15.6503]
[1644708435113,1.46372028,95.854,95.82,15.6503]
[1644708436019,1.46372028,95.853,95.82,15.6503]
[1644708436215,1.46372028,95.85,95.82,15.6503]
[1644708436416,1.46372028,95.849,95.82,15.6503]
[1644708436616,1.46372028,95.852,95.821,0.25]
[1644708436818,1.46372028,95.852,95.82,15.6503]
[1644708437017,1.46372028,95.851,95.82,15.6503]
[1644708437218,1.46372028,95.85,95.82,15.6503]
[1644708437417,0.25,95.867,95.82,15.6503]
[1644708437418,1.46372028,95.849,95.82,15.6503]
[1644708437620,1.46372028,95.849,95.811,43.77424263]
[1644708437819,41.68579423,95.854,95.772,0.024]
[1644708437820,1.46372028,95.841,95.772,0.024]
[1644708438021,1.46372028,95.834,95.792,0.024]
[1644708438223,1.46372028,95.823,95.771,0.024]
[1644708438531,1.46372028,95.818,95.745,0.024]
[1644708438723,103.9,95.815,95.745,37.32079266]
[1644708438922,22.7233,95.814,95.745,37.32079266]
[1644708439125,1.46372028,95.809,95.746,20.83841293]
[1644708439326,1.46372028,95.81,95.747,0.024]
[1644708439528,1.46372028,95.807,95.747,0.024]
[1644708439824,1.46372028,95.807,95.746,0.024]
[1644708440026,1.46372028,95.812,95.746,0.024]
[1644708440227,1.46372028,95.811,95.746,0.024]
[1644708440427,6.68372028,95.81,95.747,20.84164157]
[1644708440627,1.46372028,95.811,95.748,0.024]
[1644708440827,1.46372028,95.811,95.75,15.6618]
[1644708441036,1.46372028,95.812,95.75,15.6618]
[1644708441231,1.46372028,95.813,95.751,0.274]
[1644708441531,5.22,95.811,95.751,0.25]
[1644708441729,6.68372028,95.812,95.751,0.25]
[1644708441930,5.22,95.813,95.752,0.024]
[1644708442130,5.22,95.811,95.751,0.25]
[1644708442330,5.22,95.812,95.751,0.25]
[1644708442531,5.22,95.813,95.752,0.024]
[1644708442729,5.22,95.813,95.76,15.6602]
[1644708442929,1.46372028,95.812,95.76,15.6602]
[1644708443131,5.219,95.811,95.761,39.16608997]
[1644708443730,5.219,95.813,95.761,39.16608997]
[1644708443932,1.46372028,95.812,95.761,39.16608997]
[1644708444132,5.219,95.811,95.761,39.16608997]
[1644708444331,1.46372028,95.813,95.761,39.16608997]
[1644708444332,5.219,95.812,95.761,39.16608997]
[1644708444533,6.68272028,95.812,95.761,39.16608997]
[1644708444732,1.46372028,95.812,95.761,39.16608997]
[1644708444931,1.46372028,95.813,95.761,39.16608997]
[1644708445835,22.7233,95.814,95.761,39.16608997]
[1644708446541,103.9,95.813,95.761,39.16608997]
[1644708446736,109.119,95.813,95.761,39.16608997]
[1644708446937,1.46372028,95.807,95.761,39.16608997]
[1644708447137,6.68372028,95.806,95.761,39.16608997]
[1644708447336,1.46372028,95.806,95.761,39.16608997]
[1644708447536,1.46372028,95.806,95.741,0.024]
[1644708447737,1.46372028,95.802,95.741,0.024]
[1644708447936,105.36372028,95.804,95.72,15.6656]
[1644708448138,1.46372028,95.803,95.721,0.024]
[1644708448338,1.46372028,95.805,95.717,0.024]
[1644708448738,40.7941966,95.801,95.717,0.024]
[1644708449139,128.6859,95.8,95.717,0.024]
[1644708449340,109.121,95.799,95.717,0.024]
[1644708449741,109.121,95.799,95.73,15.6649]
[1644708449943,109.121,95.799,95.731,40.63880738]
[1644708450143,109.121,95.799,95.732,0.024]
[1644708453159,1.46372028,95.798,95.732,0.024]
[1644708453368,1.46372028,95.793,95.721,0.024]
[1644708453560,1.46372028,95.789,95.717,0.024]
[1644708453761,1.46372028,95.788,95.717,0.024]
[1644708453959,5.221,95.787,95.717,0.024]
[1644708454158,103.9,95.789,95.717,0.024]
[1644708454159,46.791127,95.785,95.717,0.024]
[1644708454360,5.221,95.784,95.717,0.024]
[1644708455361,14.99,95.78,95.717,0.024]
[1644708455562,103.9,95.778,95.717,0.024]
[1644708455762,5.222,95.777,95.716,0.25]
[1644708456163,103.9,95.776,95.716,0.25]
[1644708456563,103.9,95.774,95.716,0.25]
[1644708456766,103.9,95.774,95.717,0.024]
[1644708456964,5.222,95.773,95.716,0.25]
[1644708457567,103.9,95.772,95.716,0.25]
[1644708459066,103.9,95.768,95.716,0.25]
[1644708460371,5.222,95.767,95.716,0.25]
[1644708461974,103.9,95.766,95.716,0.25]
[1644708462374,5.222,95.765,95.716,0.25]
[1644708462579,126.8901,95.764,95.716,0.25]
[1644708462976,5.222,95.763,95.716,0.25]
[1644708463378,103.9,95.762,95.716,0.25]
[1644708463577,103.9,95.76,95.716,0.25]
[1644708463976,5.222,95.759,95.716,0.25]
[1644708464576,103.9,95.758,95.701,0.024]
[1644708464777,103.9,95.758,95.693,0.024]
[1644708465780,5.223,95.763,95.693,0.274]
[1644708465982,1.46372028,95.775,95.7,15.67]
[1644708466184,1.46372028,95.774,95.701,0.024]
[1644708466379,23.7475,95.799,95.701,0.024]
[1644708466380,1.46372028,95.798,95.71,6.74494371]
[1644708466582,4.36418439,95.852,95.711,0.024]
[1644708466583,1.46372028,95.803,95.711,0.024]
[1644708466783,14.99,95.85,95.712,146.41150976]
[1644708466784,36.37558875,95.815,95.712,146.41150976]
[1644708466985,36.37558875,95.815,95.713,0.024]
[1644708467182,5.221,95.814,95.731,47.16009902]
[1644708467381,1.46372028,95.804,95.732,24.7031]
[1644708467582,1.46372028,95.804,95.733,0.024]
[1644708467882,5.221,95.814,95.733,0.024]
[1644708467883,36.15044481,95.797,95.733,0.024]
[1644708468882,36.15044481,95.797,95.74,15.6624]
[1644708470085,6.68372028,95.8,95.74,15.6624]
[1644708470285,1.46372028,95.8,95.74,15.6624]
[1644708470486,1.46372028,95.803,95.75,15.6587]
[1644708470786,1.46372028,95.813,95.751,2.62390296]
[1644708470986,1.46372028,95.815,95.751,2.62390296]
[1644708471185,1.46372028,95.813,95.752,37.86611927]
[1644708471387,1.46372028,95.813,95.753,0.024]
[1644708471687,1.46372028,95.812,95.752,37.86611927]
[1644708471888,1.46372028,95.813,95.76,15.6579]
[1644708472287,39.52113832,95.814,95.76,15.6579]
[1644708472487,5.219,95.813,95.76,15.6579]
[1644708474891,39.52113832,95.814,95.77,15.6574]
[1644708475089,5.22,95.812,95.77,15.6574]
[1644708475289,1.46372028,95.824,95.77,15.6574]
[1644708475490,1.46372028,95.824,95.762,5.219]
[1644708475491,1.46372028,95.826,95.771,5.219]
[1644708475690,1.46372028,95.826,95.763,5.243]
[1644708475891,1.46372028,95.826,95.763,5.219]
[1644708476091,1.46372028,95.825,95.764,0.024]
[1644708476290,24.90762028,95.827,95.762,5.243]
[1644708476493,23.4439,95.827,95.763,0.024]
[1644708476691,23.4439,95.827,95.764,5.219]
[1644708476893,23.4439,95.827,95.781,44.39671976]
[1644708477893,1.46372028,95.828,95.781,44.39671976]
[1644708478095,1.46372028,95.83,95.79,15.6555]
[1644708478299,1.46372028,95.839,95.79,15.6555]
[1644708478495,1.46372028,95.842,95.79,15.6555]
[1644708478694,1.46372028,95.843,95.79,15.6555]
[1644708478896,5.218,95.844,95.79,15.6555]
[1644708479094,1.46372028,95.847,95.79,15.6555]
[1644708479296,5.218,95.846,95.79,15.6555]
[1644708479493,5.218,95.847,95.79,15.6555]
[1644708479699,5.218,95.847,95.791,5.218]
[1644708479895,5.218,95.847,95.8,15.6523]
[1644708480099,5.218,95.847,95.801,40.65889439]
[1644708480297,37.9879272,95.848,95.801,40.65889439]
[1644708481503,1.46372028,95.851,95.801,40.65889439]
[1644708481702,0.25,95.85,95.801,40.65889439]
[1644708481902,0.25,95.85,95.81,15.6521]
[1644708488830,6.67972028,95.858,95.81,15.6521]
[1644708489038,1.46372028,95.865,95.81,15.6521]
[1644708489233,1.46372028,95.871,95.82,15.6482]
[1644708489633,0.03954255,95.882,95.821,2.62390296]
[1644708489830,0.03954255,95.88,95.821,40.09394399]
[1644708490033,0.03954255,95.884,95.822,22.7212]
[1644708490233,0.03954255,95.886,95.822,25.34510296]
[1644708490437,25.65998393,95.915,95.83,15.6452]
[1644708490438,0.03954255,95.884,95.83,15.6452]
[1644708490639,0.03954255,95.885,95.831,109.115]
[1644708490833,0.03954255,95.888,95.841,5.0]
[1644708491036,0.03954255,95.894,95.842,28.2058]
[1644708491233,1.46372028,95.912,95.842,28.2058]
[1644708491435,46.74909937,95.911,95.85,15.6403]
[1644708491638,46.70955682,95.911,95.85,15.6403]
[1644708491832,5.464,95.91,95.85,15.6403]
[1644708492033,6.92772028,95.91,95.85,15.6403]
[1644708492234,1.46372028,95.909,95.85,15.6403]
[1644708492432,1.46372028,95.907,95.851,5.214]
[1644708492833,6.67772028,95.906,95.851,5.214]
[1644708493036,1.46372028,95.907,95.851,5.214]
[1644708493237,1.46372028,95.907,95.861,42.63635864]
[1644708493433,5.214,95.906,95.861,42.63635864]
[1644708493833,1.46372028,95.909,95.861,42.63635864]
[1644708494035,5.214,95.908,95.861,42.63635864]
[1644708494234,46.70955682,95.911,95.861,42.63635864]
[1644708494735,0.25,95.91,95.861,42.63635864]
[1644708494940,5.214,95.909,95.861,42.63635864]
[1644708495541,1.46372028,95.906,95.842,22.9908]
[1644708495734,5.215,95.905,95.842,22.9908]
[1644708495934,1.46372028,95.897,95.842,22.9908]
[1644708496136,1.46372028,95.897,95.82,52.1545]
[1644708496335,1.46372028,95.891,95.82,52.1545]
[1644708496534,45.56831818,95.89,95.821,39.41826659]
[1644708496735,1.46372028,95.888,95.84,15.6464]
[1644708496935,27.78314255,95.889,95.84,15.6464]
[1644708497135,27.78314255,95.889,95.841,37.44152837]
[1644708497136,27.7436,95.889,95.841,37.44152837]
[1644708497335,22.5286,95.889,95.841,37.69152837]
[1644708497936,5.215,95.888,95.841,37.69152837]
[1644708498138,5.215,95.888,95.841,37.44152837]
[1644708498337,5.215,95.888,95.842,0.25]
[1644708499338,1.71372028,95.887,95.842,0.25]
[1644708499539,5.215,95.886,95.842,0.25]
[1644708499739,1.71372028,95.887,95.842,0.25]
[1644708500140,1.46372028,95.883,95.842,0.25]
[1644708501241,1.46372028,95.882,95.842,0.25]
[1644708501641,5.215,95.881,95.842,0.25]
[1644708501841,1.46372028,95.884,95.842,0.25]
[1644708502242,1.46372028,95.883,95.842,0.25]
[1644708502641,1.46372028,95.887,95.85,15.6458]
[1644708503041,1.46372028,95.886,95.85,15.6458]
[1644708503440,1.46372028,95.887,95.85,15.6458]
[1644708504041,1.46372028,95.889,95.85,15.6458]
[1644708504442,1.46372028,95.89,95.85,15.6458]
[1644708505048,1.46372028,95.889,95.85,15.6458]
[1644708505547,1.46372028,95.89,95.85,15.6458]
[1644708505942,1.46372028,95.889,95.85,15.6458]
[1644708506344,1.46372028,95.887,95.85,15.6458]
[1644708506543,1.46372028,95.891,95.85,15.6458]
[1644708506743,1.46372028,95.892,95.85,15.6458]
[1644708506944,1.46372028,95.897,95.85,15.6458]
[1644708507142,5.90223769,95.918,95.85,15.6458]
[1644708507344,0.03954255,95.916,95.851,2.62390296]
[1644708507644,0.03954255,95.917,95.871,45.6888559]
[1644708507841,9.57818439,95.962,95.871,45.6888559]
[1644708507842,0.03954255,95.915,95.871,45.6888559]
[1644708508044,5.8414181,95.933,95.871,45.6888559]
[1644708508245,11.0544181,95.933,95.871,45.6888559]
[1644708508442,8.76650203,95.932,95.871,45.6888559]
[1644708508643,8.13808393,95.931,95.872,23.104]
[1644708508848,11.0544181,95.931,95.872,23.104]
[1644708509055,5.8414181,95.93,95.872,23.104]
[1644708509245,29.9954,95.929,95.872,23.104]
[1644708509445,5.8414181,95.928,95.872,23.104]
[1644708509644,5.213,95.927,95.872,23.104]
[1644708509846,5.8414181,95.926,95.88,15.6381]
[1644708510249,5.213,95.925,95.88,15.6381]
[1644708510446,5.8414181,95.924,95.88,15.6381]
[1644708510648,5.213,95.923,95.88,15.6381]
[1644708510848,2.92508393,95.931,95.88,15.6381]
[1644708511047,2.92508393,95.929,95.88,15.6381]
[1644708511250,2.92508393,95.929,95.881,0.25]
[1644708511647,2.92508393,95.929,95.89,15.6393]
[1644708511847,2.92508393,95.931,95.891,39.28513066]
[1644708512247,5.213,95.93,95.891,39.28513066]
[1644708512448,2.92508393,95.927,95.89,15.6393]
[1644708512651,2.92508393,95.926,95.872,23.104]
[1644708512848,2.92508393,95.925,95.872,23.104]
[1644708513049,5.213,95.924,95.872,23.104]
[1644708513252,5.83774303,95.923,95.872,23.104]
[1644708513450,5.83774303,95.923,95.873,46.65240817]
[1644708513651,5.213,95.922,95.873,46.65240817]
[1644708513851,5.213,95.922,95.88,15.6409]
[1644708514050,5.83774303,95.921,95.88,15.6409]
[1644708514250,5.213,95.925,95.88,15.6409]
[1644708514453,5.83774303,95.924,95.88,15.6409]
[1644708514853,2.92508393,95.925,95.88,15.6409]
[1644708515052,2.92508393,95.924,95.88,15.6409]
[1644708515757,5.213,95.953,95.88,15.6409]
[1644708515758,2.92508393,95.929,95.88,15.6409]
[1644708515952,2.92508393,95.931,95.88,15.6409]
[1644708516352,2.92508393,95.934,95.88,15.6409]
[1644708516753,2.92508393,95.942,95.88,15.6409]
[1644708516952,2.92508393,95.943,95.88,15.6409]
[1644708517153,0.03954255,95.942,95.88,15.6409]
[1644708517758,2.92508393,95.941,95.88,15.6409]
[1644708517952,5.83774303,95.941,95.88,15.6409]
[1644708518152,2.92508393,95.937,95.88,15.6409]
[1644708518354,2.92508393,95.936,95.88,15.6409]
[1644708518551,2.92508393,95.937,95.88,15.6409]
[1644708518753,23.3176,95.936,95.88,15.6409]
[1644708519151,5.83774303,95.935,95.88,15.6409]
[1644708519555,5.83774303,95.935,95.881,103.9]
[1644708519766,2.92508393,95.94,95.89,15.6338]
[1644708519960,0.03954255,95.945,95.89,15.6338]
[1644708520155,0.03954255,95.948,95.891,24.6988]
[1644708520361,0.03954255,95.953,95.891,27.32270296]
[1644708520560,0.03954255,95.964,95.892,45.47723135]
[1644708520759,0.03954255,95.965,95.892,48.10113431]
[1644708520961,0.03954255,95.963,95.893,2.62390296]
[1644708521159,0.03954255,95.964,95.893,2.62390296]
[1644708521358,0.03954255,95.962,95.893,2.62390296]
[1644708521559,37.24970027,95.96,95.9,15.632]
[1644708521758,5.212,95.959,95.9,15.632]
[1644708522160,5.83774303,95.958,95.9,15.632]
[1644708522459,5.212,95.957,95.9,15.632]
[1644708522664,5.83774303,95.958,95.901,5.212]
[1644708522859,0.03954255,95.964,95.91,15.633]
[1644708523059,0.03954255,95.962,95.91,15.633]
[1644708523259,5.78757643,95.965,95.91,15.633]
[1644708523462,5.78757643,95.965,95.911,44.17448994]
[1644708523763,5.211,95.964,95.911,44.17448994]
[1644708524360,0.25,95.963,95.911,44.17448994]
[1644708524559,5.211,95.962,95.911,44.17448994]
[1644708524761,5.78092444,95.961,95.92,15.6325]
[1644708524967,5.211,95.96,95.92,15.6325]
[1644708525363,5.211,95.962,95.92,15.6325]
[1644708527982,5.78055,95.961,95.92,15.6325]
[1644708528182,5.211,95.96,95.92,15.6325]
[1644708528383,5.211,95.961,95.92,15.6325]
[1644708528586,5.211,95.962,95.92,15.6325]
[1644708529282,5.78072791,95.961,95.92,15.6325]
[1644708529482,5.211,95.96,95.92,15.6325]
[1644708529882,5.211,95.962,95.92,15.6325]
[1644708531089,0.25,95.963,95.92,15.6325]
[1644708531286,5.78404114,95.962,95.92,15.6325]
[1644708531493,5.211,95.961,95.92,15.6325]
[1644708531888,5.211,95.962,95.92,15.6325]
[1644708532289,5.79069383,95.961,95.92,15.6325]
[1644708532889,5.79069383,95.962,95.92,15.6325]
[1644708533188,5.79069383,95.961,95.92,15.6325]
[1644708533388,5.211,95.96,95.92,15.6325]
[1644708533989,5.211,95.962,95.92,15.6325]
[1644708534191,5.79129702,95.959,95.911,44.17448994]
[1644708534389,5.211,95.958,95.911,44.17448994]
[1644708534594,5.79129702,95.958,95.911,44.17448994]
[1644708534790,5.211,95.957,95.911,44.17448994]
[1644708534991,5.79129702,95.956,95.88,52.1226]
[1644708535192,2.92508393,95.954,95.881,24.6195]
[1644708535390,103.9,95.96,95.881,24.6195]
[1644708535391,2.92508393,95.951,95.881,24.6195]
[1644708535592,2.92508393,95.947,95.881,24.6195]
[1644708535790,23.3413,95.946,95.881,24.6195]
[1644708536094,156.96839463,95.945,95.881,24.6195]
[1644708536292,2.92508393,95.943,95.881,24.6195]
[1644708536492,5.25254255,95.942,95.881,24.6195]
[1644708536693,5.79129702,95.941,95.881,24.6195]
[1644708536893,5.213,95.94,95.881,24.6195]
[1644708537293,5.79129702,95.939,95.881,24.6195]
[1644708537494,5.213,95.938,95.881,24.6195]
[1644708537695,5.79129702,95.937,95.881,24.6195]
[1644708538195,5.213,95.936,95.881,24.6195]
[1644708538397,5.79129702,95.936,95.881,24.6195]
[1644708538600,28.9028,95.935,95.881,24.6195]
[1644708538800,5.79129702,95.934,95.881,24.6195]
[1644708538997,5.213,95.933,95.881,24.6195]
[1644708539197,5.213,95.933,95.88,15.6398]
[1644708539398,5.79129702,95.932,95.881,0.25]
[1644708539798,5.213,95.931,95.881,0.25]
[1644708540000,42.49592478,95.93,95.881,0.25]
[1644708540203,11.00429702,95.929,95.881,0.25]
[1644708540399,5.79129702,95.928,95.881,0.25]
[1644708540600,5.213,95.927,95.881,0.25]
[1644708540999,5.80211849,95.926,95.881,0.25]
[1644708541204,5.213,95.925,95.881,0.25]
[1644708541601,5.213,95.929,95.881,0.25]
[1644708541802,5.213,95.927,95.881,0.25]
[1644708542006,5.80212428,95.926,95.881,0.25]
[1644708542202,5.213,95.925,95.881,0.25]
[1644708542402,5.213,95.928,95.881,0.25]
[1644708542704,5.80214124,95.927,95.881,0.25]
[1644708542903,5.213,95.926,95.881,0.25]
[1644708543103,5.80214124,95.925,95.881,0.25]
[1644708543505,5.213,95.924,95.881,0.25]
[1644708543707,11.01514124,95.928,95.881,0.25]
[1644708543905,5.80214124,95.927,95.881,0.25]
[1644708544105,5.213,95.926,95.881,0.25]
[1644708544507,5.80214124,95.925,95.881,0.25]
[1644708544926,5.213,95.924,95.881,0.25]
[1644708545308,5.80214124,95.923,95.881,0.25]
[1644708545507,5.80214124,95.926,95.881,0.25]
[1644708545709,5.80214124,95.927,95.881,0.25]
[1644708545912,5.213,95.927,95.881,0.25]
[1644708546110,5.80214124,95.926,95.881,0.25]
[1644708546508,5.213,95.925,95.881,0.25]
[1644708546709,5.80214124,95.924,95.881,0.25]
[1644708546908,5.213,95.923,95.881,0.25]
[1644708547310,5.213,95.93,95.881,0.25]
[1644708547509,5.79246461,95.929,95.881,0.25]
[1644708547709,5.79246461,95.931,95.881,0.25]
[1644708547910,11.00546461,95.931,95.881,0.25]
[1644708548111,5.79246461,95.93,95.881,0.25]
[1644708548309,5.213,95.929,95.881,0.25]
[1644708548609,5.79246461,95.928,95.881,0.25]
[1644708549011,5.213,95.927,95.881,0.25]
[1644708549220,5.79246461,95.926,95.881,0.25]
[1644708549410,5.213,95.928,95.881,0.25]
[1644708549611,5.79246461,95.927,95.881,0.25]
[1644708549812,5.213,95.926,95.881,0.25]
[1644708550115,5.79246461,95.925,95.881,0.25]
[1644708550613,5.79246461,95.929,95.881,0.25]
[1644708551014,5.79246461,95.93,95.881,0.25]
[1644708553547,5.213,95.929,95.89,15.6389]
[1644708553841,23.6898,95.935,95.89,15.6389]
[1644708554045,5.78067738,95.934,95.876,23.6948]
[1644708554244,5.78067738,95.934,95.875,47.12903349]
[1644708554245,10.99367738,95.934,95.877,0.25]
[1644708554442,36.57805354,95.933,95.875,47.12903349]
[1644708554748,10.99367738,95.932,95.85,15.6444]
[1644708554947,2.92508393,95.919,95.825,23.7243]
[1644708555347,2.92508393,95.913,95.825,23.7243]
[1644708555843,2.92508393,95.912,95.841,45.92178636]
[1644708556049,23.6776,95.911,95.842,23.5282]
[1644708556449,10.99567738,95.91,95.842,23.5282]
[1644708556652,5.78067738,95.909,95.842,23.5282]
[1644708556845,5.78067738,95.91,95.842,23.5282]
[1644708557052,10.99567738,95.91,95.842,23.5282]
[1644708557345,5.78067738,95.909,95.842,23.5282]
[1644708557550,5.215,95.908,95.842,23.5282]
[1644708557746,5.215,95.908,95.85,15.6454]
[1644708557944,5.215,95.91,95.85,15.6454]
[1644708559154,23.6776,95.911,95.85,15.6454]
[1644708559352,0.03954255,95.915,95.85,15.6454]
[1644708559554,187.37,95.99,95.85,15.6454]
[1644708559555,23.17974255,95.926,95.85,15.6454]
[1644708559749,0.03954255,95.914,95.851,2.62390296]
[1644708559953,5.25354255,95.925,95.86,15.6401]
[1644708560156,0.03954255,95.925,95.861,69.80310045]
[1644708560352,5.214,95.924,95.861,69.80310045]
[1644708560551,0.03954255,95.923,95.861,69.80310045]
[1644708560951,5.214,95.922,95.861,69.80310045]